[Event "*** Titled Tuesday Blitz"]
[Site "Chess.com"]
[Date "2018.12.04"]
[Round "4"]
[White "evgenyermolaev"]
[Black "Kawhi_Leonard2"]
[Result "1/2-1/2"]
[WhiteElo "2405"]
[BlackElo "2293"]
[TimeControl "180+2"]
[EndTime "13:49:01 PST"]
[Termination "Game drawn by agreement"]

1. e4 {[%clk 0:03:01.7]} 1... c5 {[%clk 0:03:00.8]} 2. Nf3 {[%clk 0:03:02.1]}
2... d6 {[%clk 0:03:02.1]} 3. d4 {[%clk 0:03:03.7]} 3... cxd4 {[%clk 0:03:03.4]}
4. Nxd4 {[%clk 0:03:05.6]} 4... Nf6 {[%clk 0:03:04.7]} 5. Nc3 {[%clk 0:03:07.2]}
5... g6 {[%clk 0:03:05.4]} 6. Be3 {[%clk 0:03:08.7]} 6... Bg7 {[%clk 0:03:06.9]}
7. f3 {[%clk 0:03:09.6]} 7... Nc6 {[%clk 0:03:08.5]} 8. Qd2 {[%clk 0:03:11.2]}
8... O-O {[%clk 0:03:10.2]} 9. O-O-O {[%clk 0:03:11.1]} 9... d5 {[%clk
0:03:11.5]} 10. Nxc6 {[%clk 0:03:12.7]} 10... bxc6 {[%clk 0:03:12]} 11. Bh6
{[%clk 0:03:14.4]} 11... Bxh6 {[%clk 0:03:10.8]} 12. Qxh6 {[%clk 0:03:15.6]}
12... Rb8 {[%clk 0:03:12.1]} 13. e5 {[%clk 0:03:11.7]} 13... Nd7 {[%clk
0:03:07.9]} 14. h4 {[%clk 0:03:07.3]} 14... Nxe5 {[%clk 0:03:03]} 15. h5 {[%clk
0:03:07.7]} 15... Bf5 {[%clk 0:03:03.3]} 16. g4 {[%clk 0:03:01.9]} 16... f6
{[%clk 0:03:04.6]} 17. Qe3 {[%clk 0:02:43.3]} 17... Bd7 {[%clk 0:02:39.1]} 18.
hxg6 {[%clk 0:02:28.1]} 18... Nxg6 {[%clk 0:02:39.3]} 19. Bd3 {[%clk 0:02:11.2]}
19... Rf7 {[%clk 0:02:40.6]} 20. Rh6 {[%clk 0:01:42.2]} 20... Rg7 {[%clk
0:02:31.1]} 21. Rdh1 {[%clk 0:01:43.3]} 21... Qb6 {[%clk 0:02:30.6]} 22. Qe2
{[%clk 0:01:20.4]} 22... Qxb2+ {[%clk 0:02:27.3]} 23. Kd2 {[%clk 0:01:21.7]}
23... d4 {[%clk 0:02:17.2]} 24. Bc4+ {[%clk 0:00:47.1]} 24... Kh8 {[%clk
0:02:04.6]} 25. Ne4 {[%clk 0:00:29.6]} 25... Qb4+ {[%clk 0:02:04]} 26. Kd1
{[%clk 0:00:29.7]} 26... Qb1+ {[%clk 0:01:01.7]} 27. Kd2 {[%clk 0:00:30.4]}
27... Qb4+ {[%clk 0:01:03.4]} 28. Kd1 {[%clk 0:00:31.3]} 28... Nf4 {[%clk
0:00:53]} 29. Qh2 {[%clk 0:00:25.5]} 29... Qb1+ {[%clk 0:00:52.7]} 30. Kd2
{[%clk 0:00:26.3]} 30... Qb4+ {[%clk 0:00:53.8]} 31. Kd1 {[%clk 0:00:24.9]}
31... Qb1+ {[%clk 0:00:54.3]} 32. Kd2 {[%clk 0:00:25.2]} 32... Qb4+ {[%clk
0:00:55.3]} 1/2-1/2

[Event "*** Titled Tuesday Blitz"]
[Site "Chess.com"]
[Date "2018.12.04"]
[Round "4"]
[White "HanSchut"]
[Black "kirillgenius"]
[Result "1-0"]
[WhiteElo "2327"]
[BlackElo "2151"]
[TimeControl "180+2"]
[EndTime "13:49:01 PST"]
[Termination "HanSchut won on time"]

1. e4 {[%clk 0:03:01.9]} 1... c5 {[%clk 0:02:55.5]} 2. Nf3 {[%clk 0:03:02.5]}
2... e6 {[%clk 0:02:56.2]} 3. c4 {[%clk 0:03:02.6]} 3... Nc6 {[%clk 0:02:56.8]}
4. Nc3 {[%clk 0:03:02.4]} 4... Nf6 {[%clk 0:02:39.8]} 5. Be2 {[%clk 0:03:02.9]}
5... a6 {[%clk 0:02:36.8]} 6. O-O {[%clk 0:03:02.7]} 6... Qc7 {[%clk 0:02:36.3]}
7. d4 {[%clk 0:03:00.8]} 7... cxd4 {[%clk 0:02:36.8]} 8. Nxd4 {[%clk 0:03:02.7]}
8... Be7 {[%clk 0:02:23.6]} 9. Be3 {[%clk 0:02:58.9]} 9... d6 {[%clk 0:02:21.7]}
10. Rc1 {[%clk 0:02:59]} 10... Ne5 {[%clk 0:02:22.3]} 11. f3 {[%clk 0:02:56.6]}
11... O-O {[%clk 0:02:21]} 12. Qd2 {[%clk 0:02:55.7]} 12... b6 {[%clk
0:02:13.1]} 13. Rfd1 {[%clk 0:02:54.9]} 13... Bb7 {[%clk 0:02:11.3]} 14. Bf1
{[%clk 0:02:55.6]} 14... Rac8 {[%clk 0:02:08.5]} 15. Qf2 {[%clk 0:02:56.2]}
15... Rfd8 {[%clk 0:02:04.2]} 16. b4 {[%clk 0:02:44]} 16... Nxc4 {[%clk
0:01:40.9]} 17. Bxc4 {[%clk 0:02:43.9]} 17... Qxc4 {[%clk 0:01:42.8]} 18. Nd5
{[%clk 0:02:44.5]} 18... exd5 {[%clk 0:01:43.2]} 19. Rxc4 {[%clk 0:02:41.3]}
19... dxc4 {[%clk 0:01:45]} 20. Nf5 {[%clk 0:02:39.8]} 20... Bf8 {[%clk
0:01:25.6]} 21. Bxb6 {[%clk 0:02:40.1]} 21... Rd7 {[%clk 0:01:16.3]} 22. Bd4
{[%clk 0:02:23.8]} 22... Ne8 {[%clk 0:00:55.9]} 23. Bc3 {[%clk 0:02:19.6]} 23...
d5 {[%clk 0:00:26.1]} 24. exd5 {[%clk 0:02:06]} 24... Bxd5 {[%clk 0:00:26.3]}
25. a3 {[%clk 0:01:53.3]} 25... Rcd8 {[%clk 0:00:24.4]} 26. Re1 {[%clk
0:01:48.9]} 26... Be6 {[%clk 0:00:23.7]} 27. Nd4 {[%clk 0:01:43.1]} 27... Bd5
{[%clk 0:00:22.6]} 28. Nf5 {[%clk 0:01:27.3]} 28... Nc7 {[%clk 0:00:21.8]} 29.
Qg3 {[%clk 0:01:20.7]} 29... Ne6 {[%clk 0:00:14.5]} 30. h4 {[%clk 0:01:14.3]}
1-0

[Event "*** Titled Tuesday Blitz"]
[Site "Chess.com"]
[Date "2018.12.04"]
[Round "4"]
[White "FMJoseHerrera"]
[Black "DiogenesSinopeus"]
[Result "1-0"]
[WhiteElo "2549"]
[BlackElo "2423"]
[TimeControl "180+2"]
[EndTime "13:49:18 PST"]
[Termination "FMJoseHerrera won by resignation"]

1. Nf3 {[%clk 0:03:01.9]} 1... Nf6 {[%clk 0:03:01.1]} 2. g3 {[%clk 0:03:02.7]}
2... d5 {[%clk 0:03:01.8]} 3. Bg2 {[%clk 0:03:04.3]} 3... Bf5 {[%clk 0:03:02.8]}
4. O-O {[%clk 0:03:05.9]} 4... e6 {[%clk 0:03:04]} 5. d3 {[%clk 0:03:07.4]} 5...
h6 {[%clk 0:03:05.6]} 6. c3 {[%clk 0:03:08.5]} 6... c6 {[%clk 0:03:05]} 7. Qb3
{[%clk 0:03:10.1]} 7... Qb6 {[%clk 0:03:05.2]} 8. Be3 {[%clk 0:03:11.7]} 8...
Qxb3 {[%clk 0:02:59.7]} 9. axb3 {[%clk 0:03:13.6]} 9... a6 {[%clk 0:03:00]} 10.
b4 {[%clk 0:03:15.3]} 10... Nbd7 {[%clk 0:02:57.1]} 11. Nbd2 {[%clk 0:03:16.7]}
11... Ng4 {[%clk 0:02:44.5]} 12. Nb3 {[%clk 0:03:14.4]} 12... Nxe3 {[%clk
0:02:40.5]} 13. fxe3 {[%clk 0:03:16.3]} 13... Bd6 {[%clk 0:02:26.8]} 14. Na5
{[%clk 0:03:14]} 14... O-O-O {[%clk 0:02:24.7]} 15. Nd4 {[%clk 0:03:14]} 15...
Bg6 {[%clk 0:02:24.1]} 16. Nab3 {[%clk 0:02:55.2]} 16... Ne5 {[%clk 0:02:18.5]}
17. Bh3 {[%clk 0:02:49.9]} 17... Kb8 {[%clk 0:02:03.8]} 18. Nc5 {[%clk
0:02:49.6]} 18... h5 {[%clk 0:01:57.1]} 19. b3 {[%clk 0:02:04.8]} 19... Ng4
{[%clk 0:01:57.9]} 20. Nc2 {[%clk 0:01:30.8]} 20... Kc7 {[%clk 0:01:45]} 21. c4
{[%clk 0:01:27]} 21... Rdf8 {[%clk 0:01:35.3]} 22. Rf3 {[%clk 0:01:12.4]} 22...
Ne5 {[%clk 0:01:25.6]} 23. Rff1 {[%clk 0:01:12.9]} 23... h4 {[%clk 0:01:24.3]}
24. g4 {[%clk 0:01:12.3]} 24... Re8 {[%clk 0:01:16.8]} 25. Nd4 {[%clk
0:01:11.5]} 25... Be7 {[%clk 0:01:11.1]} 26. Rf2 {[%clk 0:00:55.3]} 26... Bg5
{[%clk 0:01:11.8]} 27. Nc2 {[%clk 0:00:46]} 27... dxc4 {[%clk 0:01:13.1]} 28.
bxc4 {[%clk 0:00:47.9]} 28... Nxc4 {[%clk 0:01:12.5]} 29. dxc4 {[%clk
0:00:49.2]} 29... Bxc2 {[%clk 0:01:13.1]} 30. Rxf7+ {[%clk 0:00:50.9]} 30... Kc8
{[%clk 0:00:58.1]} 31. Nxb7 {[%clk 0:00:48.6]} 31... Bxe3+ {[%clk 0:00:56.8]}
32. Kh1 {[%clk 0:00:50.1]} 32... Ref8 {[%clk 0:00:18]} 33. Nd6+ {[%clk
0:00:50.3]} 33... Kb8 {[%clk 0:00:17.6]} 34. Rb7+ {[%clk 0:00:50.4]} 1-0

[Event "*** Titled Tuesday Blitz"]
[Site "Chess.com"]
[Date "2018.12.04"]
[Round "4"]
[White "kacprekt"]
[Black "abubakrtagelsir"]
[Result "0-1"]
[WhiteElo "2392"]
[BlackElo "2305"]
[TimeControl "180+2"]
[EndTime "13:49:22 PST"]
[Termination "abubakrtagelsir won by resignation"]

1. d4 {[%clk 0:03:01.6]} 1... d5 {[%clk 0:03:00.1]} 2. c4 {[%clk 0:03:01.2]}
2... c6 {[%clk 0:02:58.9]} 3. Nc3 {[%clk 0:03:02.1]} 3... Nf6 {[%clk 0:02:59.6]}
4. Nf3 {[%clk 0:02:56.2]} 4... dxc4 {[%clk 0:02:59.4]} 5. a4 {[%clk 0:02:51.2]}
5... Bf5 {[%clk 0:02:58.4]} 6. Nh4 {[%clk 0:02:47.9]} 6... Bd7 {[%clk
0:02:58.4]} 7. e4 {[%clk 0:02:40.6]} 7... e6 {[%clk 0:02:50]} 8. Nf3 {[%clk
0:02:19.7]} 8... b5 {[%clk 0:02:49.4]} 9. axb5 {[%clk 0:02:00.2]} 9... cxb5
{[%clk 0:02:48.7]} 10. d5 {[%clk 0:02:00]} 10... Bb4 {[%clk 0:02:46.8]} 11. Bg5
{[%clk 0:01:51.7]} 11... h6 {[%clk 0:02:42.9]} 12. Bxf6 {[%clk 0:01:46.7]} 12...
Qxf6 {[%clk 0:02:43.1]} 13. e5 {[%clk 0:01:47.5]} 13... Qg6 {[%clk 0:02:39]} 14.
d6 {[%clk 0:01:29.1]} 14... O-O {[%clk 0:02:29]} 15. Be2 {[%clk 0:01:23.1]}
15... Qxg2 {[%clk 0:02:07.8]} 16. Rg1 {[%clk 0:01:22.8]} 16... Qh3 {[%clk
0:02:06.3]} 17. Qc2 {[%clk 0:00:53.7]} 17... Nc6 {[%clk 0:01:50.9]} 18. Rg3
{[%clk 0:00:51.6]} 18... Qh5 {[%clk 0:01:44.6]} 19. Ng5 {[%clk 0:00:27.8]} 19...
Qg6 {[%clk 0:01:39.5]} 20. Ne4 {[%clk 0:00:28.8]} 20... Nd4 {[%clk 0:01:31.5]}
21. Qd1 {[%clk 0:00:18.7]} 21... Qxe4 {[%clk 0:01:09.4]} 22. Kf1 {[%clk
0:00:11.5]} 22... Bxc3 {[%clk 0:01:07.2]} 23. bxc3 {[%clk 0:00:11.2]} 23...
Qxe2+ {[%clk 0:01:07.5]} 24. Qxe2 {[%clk 0:00:11.5]} 24... Nxe2 {[%clk
0:01:08.6]} 25. Kxe2 {[%clk 0:00:12.8]} 25... f6 {[%clk 0:01:09.9]} 26. Rag1
{[%clk 0:00:12.8]} 26... g5 {[%clk 0:01:08.7]} 27. h4 {[%clk 0:00:13.2]} 27...
fxe5 {[%clk 0:01:09.3]} 28. hxg5 {[%clk 0:00:14.4]} 28... h5 {[%clk 0:01:09.5]}
29. Rh3 {[%clk 0:00:14.3]} 29... Be8 {[%clk 0:01:10]} 30. d7 {[%clk 0:00:15.2]}
30... Bg6 {[%clk 0:01:09.7]} 31. Re3 {[%clk 0:00:11.8]} 31... e4 {[%clk
0:01:07.2]} 32. Rd1 {[%clk 0:00:11.2]} 32... Rad8 {[%clk 0:01:07.1]} 33. Rd6
{[%clk 0:00:11.5]} 33... Bf5 {[%clk 0:01:06.6]} 0-1

[Event "*** Titled Tuesday Blitz"]
[Site "Chess.com"]
[Date "2018.12.04"]
[Round "4"]
[White "TheBigBadChessDad"]
[Black "pedromartinez91"]
[Result "0-1"]
[WhiteElo "2276"]
[BlackElo "2400"]
[TimeControl "180+2"]
[EndTime "13:49:29 PST"]
[Termination "pedromartinez91 won on time"]

1. d4 {[%clk 0:03:01.9]} 1... d5 {[%clk 0:03:00.4]} 2. Bf4 {[%clk 0:03:01.4]}
2... Nf6 {[%clk 0:03:00.3]} 3. e3 {[%clk 0:03:02.2]} 3... c5 {[%clk 0:03:00.5]}
4. c3 {[%clk 0:03:03]} 4... Qb6 {[%clk 0:03:01.1]} 5. Qb3 {[%clk 0:03:04]} 5...
Nc6 {[%clk 0:03:01.2]} 6. dxc5 {[%clk 0:02:58.3]} 6... Qxc5 {[%clk 0:02:55.8]}
7. Nf3 {[%clk 0:02:57.2]} 7... e6 {[%clk 0:02:46.4]} 8. Nbd2 {[%clk 0:02:55.2]}
8... Bd6 {[%clk 0:02:44.6]} 9. Bxd6 {[%clk 0:02:40.5]} 9... Qxd6 {[%clk
0:02:45.4]} 10. Be2 {[%clk 0:02:35.2]} 10... O-O {[%clk 0:02:45.7]} 11. O-O
{[%clk 0:02:35.2]} 11... e5 {[%clk 0:02:46.8]} 12. Rad1 {[%clk 0:02:30.2]} 12...
Be6 {[%clk 0:02:46.9]} 13. Qc2 {[%clk 0:02:28.4]} 13... Rac8 {[%clk 0:02:43.5]}
14. Qb1 {[%clk 0:02:29]} 14... Qe7 {[%clk 0:02:40.9]} 15. e4 {[%clk 0:02:20.1]}
15... dxe4 {[%clk 0:02:37.2]} 16. Ng5 {[%clk 0:02:14.2]} 16... Rfd8 {[%clk
0:02:07.9]} 17. Ngxe4 {[%clk 0:01:45.6]} 17... Nxe4 {[%clk 0:02:01.1]} 18. Nxe4
{[%clk 0:01:45.9]} 18... f5 {[%clk 0:02:01.3]} 19. Ng3 {[%clk 0:01:41.2]} 19...
g6 {[%clk 0:02:00.5]} 20. b3 {[%clk 0:01:14]} 20... Qc5 {[%clk 0:01:59.5]} 21.
Qb2 {[%clk 0:01:07.9]} 21... b5 {[%clk 0:01:44]} 22. Rxd8+ {[%clk 0:01:02.5]}
22... Rxd8 {[%clk 0:01:44.6]} 23. Rd1 {[%clk 0:01:04.1]} 23... Rxd1+ {[%clk
0:01:45.5]} 24. Bxd1 {[%clk 0:01:06]} 24... a5 {[%clk 0:01:39]} 25. a3 {[%clk
0:01:00.3]} 25... Kf7 {[%clk 0:01:36.9]} 26. h3 {[%clk 0:00:58.9]} 26... Qd6
{[%clk 0:01:32.7]} 27. Be2 {[%clk 0:00:56.2]} 27... b4 {[%clk 0:01:31.4]} 28.
cxb4 {[%clk 0:00:55]} 28... axb4 {[%clk 0:01:32.2]} 29. axb4 {[%clk 0:00:54.2]}
29... Qxb4 {[%clk 0:01:29.7]} 30. Bd1 {[%clk 0:00:35.8]} 30... Nd4 {[%clk
0:01:25.1]} 31. Qc1 {[%clk 0:00:31.7]} 31... Kf6 {[%clk 0:01:23.3]} 32. Kh2
{[%clk 0:00:20.8]} 32... Qe1 {[%clk 0:01:22.7]} 33. Qc5 {[%clk 0:00:09.9]} 33...
Qxd1 {[%clk 0:01:18.5]} 34. Qf8+ {[%clk 0:00:10.9]} 34... Bf7 {[%clk 0:01:19.5]}
35. Qh8+ {[%clk 0:00:09.1]} 35... Ke7 {[%clk 0:01:17.8]} 36. Qxe5+ {[%clk
0:00:09.3]} 36... Ne6 {[%clk 0:01:18.8]} 37. b4 {[%clk 0:00:09.3]} 37... Qd6
{[%clk 0:01:19.6]} 38. Qa5 {[%clk 0:00:05.7]} 38... h5 {[%clk 0:01:19.9]} 39. h4
{[%clk 0:00:06.1]} 39... Qf4 {[%clk 0:01:18.3]} 40. Qa7+ {[%clk 0:00:04.5]}
40... Kf6 {[%clk 0:01:18.4]} 0-1

[Event "*** Titled Tuesday Blitz"]
[Site "Chess.com"]
[Date "2018.12.04"]
[Round "4"]
[White "NikolaGry"]
[Black "biostatistician"]
[Result "1-0"]
[WhiteElo "2638"]
[BlackElo "2448"]
[TimeControl "180+2"]
[EndTime "13:49:34 PST"]
[Termination "NikolaGry won by resignation"]

1. b3 {[%clk 0:02:57.7]} 1... d5 {[%clk 0:02:59.8]} 2. Bb2 {[%clk 0:02:58.7]}
2... Bg4 {[%clk 0:03:01]} 3. Nf3 {[%clk 0:02:59.3]} 3... Nf6 {[%clk 0:02:52.1]}
4. e3 {[%clk 0:02:58.6]} 4... e6 {[%clk 0:02:53.2]} 5. c4 {[%clk 0:02:55.9]}
5... Be7 {[%clk 0:02:54.2]} 6. Be2 {[%clk 0:02:55.3]} 6... O-O {[%clk 0:02:55]}
7. h3 {[%clk 0:02:52.8]} 7... Bh5 {[%clk 0:02:56.1]} 8. Nc3 {[%clk 0:02:45.4]}
8... c5 {[%clk 0:02:52]} 9. cxd5 {[%clk 0:02:44.3]} 9... Nxd5 {[%clk 0:02:49.4]}
10. Ne4 {[%clk 0:02:39.3]} 10... Nc6 {[%clk 0:02:48.8]} 11. O-O {[%clk
0:02:38.7]} 11... Rc8 {[%clk 0:02:48.6]} 12. a3 {[%clk 0:02:38.7]} 12... Bg6
{[%clk 0:02:41.3]} 13. d3 {[%clk 0:02:38.7]} 13... b6 {[%clk 0:02:37.9]} 14. Rc1
{[%clk 0:02:36.8]} 14... Nf6 {[%clk 0:02:37.5]} 15. Nc3 {[%clk 0:02:28.3]} 15...
Qd7 {[%clk 0:02:37.9]} 16. Qd2 {[%clk 0:02:21.1]} 16... Rfd8 {[%clk 0:02:38.2]}
17. Rfd1 {[%clk 0:02:22]} 17... Nd5 {[%clk 0:02:38.6]} 18. Ne4 {[%clk
0:02:05.7]} 18... Qb7 {[%clk 0:02:25.9]} 19. Qc2 {[%clk 0:01:58.3]} 19... Rc7
{[%clk 0:02:20.7]} 20. Ba1 {[%clk 0:01:47.8]} 20... Rcd7 {[%clk 0:02:16.9]} 21.
b4 {[%clk 0:01:41.1]} 21... cxb4 {[%clk 0:01:15.6]} 22. Qxc6 {[%clk 0:01:40.9]}
22... Qxc6 {[%clk 0:01:17.5]} 23. Rxc6 {[%clk 0:01:41.2]} 23... bxa3 {[%clk
0:01:19.4]} 24. Rdc1 {[%clk 0:01:30.1]} 24... Nb4 {[%clk 0:01:16.7]} 25. Rc8
{[%clk 0:01:17.3]} 25... Nxd3 {[%clk 0:01:13.3]} 26. Bxd3 {[%clk 0:01:06.4]}
26... Rxd3 {[%clk 0:01:15.2]} 27. Ne5 {[%clk 0:01:05]} 27... Rd1+ {[%clk
0:00:53.8]} 28. Rxd1 {[%clk 0:00:58.6]} 28... Rxc8 {[%clk 0:00:55.1]} 29. Nxg6
{[%clk 0:00:52.6]} 29... hxg6 {[%clk 0:00:56]} 30. Kh2 {[%clk 0:00:36.3]} 30...
f5 {[%clk 0:00:41.6]} 31. Rd7 {[%clk 0:00:35.7]} 31... Kf7 {[%clk 0:00:29.8]}
32. Nd6+ {[%clk 0:00:35]} 32... Kf8 {[%clk 0:00:26.8]} 33. Nxc8 {[%clk
0:00:35.8]} 1-0

[Event "*** Titled Tuesday Blitz"]
[Site "Chess.com"]
[Date "2018.12.04"]
[Round "4"]
[White "PawnEatingZombie"]
[Black "vinniethepooh"]
[Result "0-1"]
[WhiteElo "2215"]
[BlackElo "2411"]
[TimeControl "180+2"]
[EndTime "13:49:38 PST"]
[Termination "vinniethepooh won by resignation"]

1. d4 {[%clk 0:03:01.9]} 1... d5 {[%clk 0:03:00.5]} 2. c4 {[%clk 0:03:03.3]}
2... c6 {[%clk 0:03:00.9]} 3. Nc3 {[%clk 0:03:04.1]} 3... Nf6 {[%clk 0:03:02.3]}
4. e3 {[%clk 0:03:04.1]} 4... e6 {[%clk 0:02:59.6]} 5. Nf3 {[%clk 0:03:03.9]}
5... Nbd7 {[%clk 0:03:01.1]} 6. Qc2 {[%clk 0:03:04.1]} 6... Bd6 {[%clk
0:03:01.5]} 7. Bd3 {[%clk 0:03:04.4]} 7... O-O {[%clk 0:03:02.1]} 8. O-O {[%clk
0:03:04.8]} 8... dxc4 {[%clk 0:03:03.5]} 9. Bxc4 {[%clk 0:03:05]} 9... e5 {[%clk
0:03:05.4]} 10. Bb3 {[%clk 0:02:51]} 10... h6 {[%clk 0:02:59.2]} 11. h3 {[%clk
0:02:51.3]} 11... Qc7 {[%clk 0:02:56.5]} 12. Rd1 {[%clk 0:02:37.1]} 12... exd4
{[%clk 0:02:43.3]} 13. exd4 {[%clk 0:02:37.5]} 13... Bf4 {[%clk 0:02:26.1]} 14.
Be3 {[%clk 0:02:36.9]} 14... Bxe3 {[%clk 0:02:25.4]} 15. fxe3 {[%clk 0:02:37.4]}
15... Nb6 {[%clk 0:02:24.5]} 16. Rac1 {[%clk 0:02:28.7]} 16... Qe7 {[%clk
0:02:18.8]} 17. Re1 {[%clk 0:02:25.8]} 17... Be6 {[%clk 0:02:10.6]} 18. e4
{[%clk 0:02:10.4]} 18... Bxb3 {[%clk 0:02:05.2]} 19. Qxb3 {[%clk 0:02:09.7]}
19... Rad8 {[%clk 0:02:06.7]} 20. Rcd1 {[%clk 0:02:09.2]} 20... Rfe8 {[%clk
0:02:04.1]} 21. e5 {[%clk 0:02:07.3]} 21... Nfd5 {[%clk 0:02:02.8]} 22. Ne4
{[%clk 0:02:08.5]} 22... Qe6 {[%clk 0:01:40.8]} 23. Nc5 {[%clk 0:02:06.1]} 23...
Qc8 {[%clk 0:01:23.8]} 24. a4 {[%clk 0:02:03.9]} 24... Re7 {[%clk 0:01:23]} 25.
a5 {[%clk 0:02:03]} 25... Na8 {[%clk 0:01:23.3]} 26. Nd2 {[%clk 0:01:52.8]}
26... b6 {[%clk 0:01:18.5]} 27. Nce4 {[%clk 0:01:46.7]} 27... Qe6 {[%clk
0:01:04.2]} 28. axb6 {[%clk 0:01:33.3]} 28... axb6 {[%clk 0:01:03.4]} 29. Nd6
{[%clk 0:01:13.8]} 29... Qg6 {[%clk 0:01:00.7]} 30. Qf3 {[%clk 0:01:06]} 30...
Nac7 {[%clk 0:00:49.9]} 31. N2e4 {[%clk 0:01:01.7]} 31... Ne8 {[%clk 0:00:36.7]}
32. Nf5 {[%clk 0:01:00.8]} 32... Red7 {[%clk 0:00:30.1]} 33. Rf1 {[%clk
0:01:00.9]} 33... Ne7 {[%clk 0:00:28]} 34. Nfd6 {[%clk 0:00:57.1]} 34... Nxd6
{[%clk 0:00:25.4]} 35. Nxd6 {[%clk 0:00:57.9]} 35... Nc8 {[%clk 0:00:21.3]} 36.
Nf5 {[%clk 0:00:45.7]} 36... Kh7 {[%clk 0:00:19.7]} 37. Qxc6 {[%clk 0:00:44.6]}
37... Qxc6 {[%clk 0:00:20.1]} 0-1

[Event "*** Titled Tuesday Blitz"]
[Site "Chess.com"]
[Date "2018.12.04"]
[Round "4"]
[White "gkchesstiger"]
[Black "Samuray111"]
[Result "1-0"]
[WhiteElo "2797"]
[BlackElo "2605"]
[TimeControl "180+2"]
[EndTime "13:49:42 PST"]
[Termination "gkchesstiger won by resignation"]

1. d4 {[%clk 0:03:01.9]} 1... Nf6 {[%clk 0:02:54]} 2. Nf3 {[%clk 0:03:02.8]}
2... e6 {[%clk 0:02:51.4]} 3. Bf4 {[%clk 0:03:03.5]} 3... c5 {[%clk 0:02:49.5]}
4. e3 {[%clk 0:03:01]} 4... Nc6 {[%clk 0:02:44.1]} 5. Nbd2 {[%clk 0:03:01.3]}
5... b6 {[%clk 0:02:42.1]} 6. Nc4 {[%clk 0:03:00]} 6... d5 {[%clk 0:02:31.2]} 7.
Nce5 {[%clk 0:03:00.6]} 7... Bd7 {[%clk 0:02:31.6]} 8. Nxd7 {[%clk 0:02:59.7]}
8... Qxd7 {[%clk 0:02:31.2]} 9. Bb5 {[%clk 0:02:57.9]} 9... Bd6 {[%clk 0:02:07]}
10. Bxd6 {[%clk 0:02:57.5]} 10... Qxd6 {[%clk 0:02:08.9]} 11. Ne5 {[%clk
0:02:58.7]} 11... Rc8 {[%clk 0:02:10]} 12. Nxc6 {[%clk 0:02:55.3]} 12... Rxc6
{[%clk 0:02:11.9]} 13. O-O {[%clk 0:02:50.4]} 13... O-O {[%clk 0:02:12.8]} 14.
Bxc6 {[%clk 0:02:51.7]} 14... Qxc6 {[%clk 0:02:14.7]} 15. c3 {[%clk 0:02:52.7]}
15... Rb8 {[%clk 0:02:13.2]} 16. Rc1 {[%clk 0:02:50.8]} 16... c4 {[%clk
0:02:13.7]} 17. Re1 {[%clk 0:02:40.8]} 17... b5 {[%clk 0:02:14.3]} 18. b3 {[%clk
0:02:41.7]} 18... a5 {[%clk 0:02:14.7]} 19. Qc2 {[%clk 0:02:39.9]} 19... h6
{[%clk 0:02:14.6]} 20. Rb1 {[%clk 0:02:38.1]} 20... Ne4 {[%clk 0:02:10.2]} 21.
Rec1 {[%clk 0:02:38.4]} 21... Nd6 {[%clk 0:02:10.3]} 22. b4 {[%clk 0:02:37.5]}
22... Ra8 {[%clk 0:02:07.2]} 23. a3 {[%clk 0:02:37]} 23... f5 {[%clk 0:02:06.5]}
24. f3 {[%clk 0:02:36.2]} 24... Ra6 {[%clk 0:01:54.6]} 25. a4 {[%clk 0:02:30.2]}
25... axb4 {[%clk 0:01:51.2]} 26. axb5 {[%clk 0:02:28]} 26... Qxb5 {[%clk
0:01:44.3]} 27. Rxb4 {[%clk 0:02:28.3]} 27... Qa5 {[%clk 0:01:45.7]} 28. Rcb1
{[%clk 0:02:26.9]} 28... Kh7 {[%clk 0:01:46.7]} 29. h4 {[%clk 0:02:25.9]} 29...
Qa3 {[%clk 0:01:45.9]} 30. Kh2 {[%clk 0:02:24.1]} 30... Qa5 {[%clk 0:01:41.9]}
31. Rb8 {[%clk 0:02:22.3]} 31... Qc7 {[%clk 0:01:42.8]} 32. Kh3 {[%clk
0:02:18.9]} 32... Qd7 {[%clk 0:01:36.4]} 33. R1b6 {[%clk 0:02:16.9]} 33... Ra1
{[%clk 0:01:36.5]} 34. Rb1 {[%clk 0:02:14.8]} 34... Ra3 {[%clk 0:01:35.9]} 35.
Qb2 {[%clk 0:02:13.9]} 35... Ra6 {[%clk 0:01:29.4]} 36. Rb6 {[%clk 0:02:13.2]}
36... Ra7 {[%clk 0:01:21.3]} 37. Ra1 {[%clk 0:02:13.3]} 37... Rxa1 {[%clk
0:01:18.8]} 38. Qxa1 {[%clk 0:02:13.9]} 38... f4 {[%clk 0:01:16.2]} 39. exf4
{[%clk 0:02:12.4]} 39... e5+ {[%clk 0:01:16.6]} 40. Kh2 {[%clk 0:02:12.6]} 40...
exd4 {[%clk 0:01:12.9]} 41. cxd4 {[%clk 0:02:11.4]} 41... Qf5 {[%clk 0:01:12.2]}
42. Qb1 {[%clk 0:01:50.1]} 42... Qxb1 {[%clk 0:01:13.1]} 43. Rxb1 {[%clk
0:01:50.4]} 43... Nf5 {[%clk 0:01:15]} 44. Rb5 {[%clk 0:01:49.6]} 44... Nxd4
{[%clk 0:01:13.9]} 45. Rxd5 {[%clk 0:01:49.9]} 45... Ne6 {[%clk 0:01:04.4]} 46.
f5 {[%clk 0:01:50.1]} 46... Nf4 {[%clk 0:01:00.4]} 47. Rc5 {[%clk 0:01:50.8]}
47... Nd3 {[%clk 0:00:59]} 48. Rxc4 {[%clk 0:01:51.5]} 48... Ne5 {[%clk
0:01:00.9]} 49. Rc7 {[%clk 0:01:52]} 49... Kg8 {[%clk 0:01:01.3]} 50. Kg3 {[%clk
0:01:53]} 50... Nd3 {[%clk 0:01:01.4]} 51. h5 {[%clk 0:01:50.9]} 51... Kf8
{[%clk 0:01:01.3]} 52. f4 {[%clk 0:01:51.6]} 52... Nb4 {[%clk 0:01:01.1]} 53.
Kf3 {[%clk 0:01:52.1]} 53... Nd5 {[%clk 0:01:02.4]} 54. Rb7 {[%clk 0:01:52.8]}
54... Nf6 {[%clk 0:01:03.2]} 55. g4 {[%clk 0:01:53.9]} 55... Kg8 {[%clk
0:01:04.4]} 56. g5 {[%clk 0:01:54.8]} 56... Nxh5 {[%clk 0:01:05]} 57. Kg4 {[%clk
0:01:56]} 57... g6 {[%clk 0:01:04.4]} 58. fxg6 {[%clk 0:01:57]} 58... Ng7 {[%clk
0:01:04.4]} 59. Rb8+ {[%clk 0:01:57.9]} 1-0